{"text_format":"1","workbook":"xlsx","n_sheets":3,"sheets":["Voorblad","Format algemene meerkosten","Declaratiekalender Jeugd & Wmo"],"not_rendered":{"charts":0,"images":0,"macros":1,"external_links":0,"defined_names":0,"comments":0,"pivot_tables":0},"unopened":[],"bounds":{"document_bytes":16777216,"sheet_cells":100000,"rows_first":2000,"rows_last":500,"rows_between":2000,"halvings":0,"cell_chars":16384,"cell_head_chars":4096},"cells_cut":0,"cells_raw":0,"read":"whole","date_system":"1900"}

{"sheet":"Voorblad","index":0,"n_rows":28,"n_cols":12,"rows_kept":28,"cut":false,"hidden":false,"merged":[[25,1,25,2],[17,1,17,2],[19,1,22,2],[2,4,5,9],[0,0,0,11],[2,1,2,2],[6,11,9,11]]}
["Formulier meerkosten coronacrisis (vanaf 1 juli)"]
[]
[null,"Zorgaanbieder",null,null,"Indienen: Indien u het formulier volledig hebt ingevuld, gecontroleerd, ondertekend en de uitgangspunten aandachtig hebt doorgenomen dient u het formulier in door op onderstaande knop te klikken"]
[null,"Naam aanbieder:"]
[null,"Adres:"]
[null,"KVK-nummer:",null,null,null,null,null,null,null,null,null,"Controle ondertekening & uiterlijke indiendatum"]
[null,"AGB-code:",null,null,null,null,null,null,null,null,null,{"$f":"IF(C19=\"\",\"Vergeet niet te ondertekenen!\",\nIF(C24=\"\",\"Voer datum in\",IF(MAX(#REF!)=0,\"Vul Format omzetderving in\",(IF(C24>MAX(#REF!),\"De uiterlijke datum van indienen is inmiddels verstreken!\")))))","v":"Vergeet niet te ondertekenen!"}]
[null,"IBAN:"]
[null,"Contactpersoon:"]
[null,"Telefoonnummer:"]
[null,"Emailadres:"]
[]
[null,"Door ondertekening van het formulier 'omzetderving / meerkosten coronacrisis':"]
[]
[null,"Verklaart de bestuurder van de zorgaanbieder, welke volgens de KvK gemachtigd is, dat de opgegeven omzetderving en/of meerkosten direct voortvloeiende uit de coronacrisis, naar waarheid zijn opgevoerd"]
[]
[]
[null,"Zorgaanbieder"]
[null,"Naam ondertekenaar:"]
[null,"Handtekening:"]
[]
[]
[]
[null,"Datum:"]
[]
[null,"Uitgangspunten Let op!"]
[null,"1. De meerkosten mogen maximaal op de uiterlijke indiendatum worden ingediend."]
[null,"2. De aanbieder dient het addendum 'Generiek addendum bij de op basis van de Basisovereenkomsten Jeugd en WMO aangegane Deelovereenkomsten' voorafgaand aan het instuuren van dit format te ondertekenen"]

{"sheet":"Format algemene meerkosten","index":1,"n_rows":20,"n_cols":10,"rows_kept":20,"cut":false,"hidden":false,"merged":[[0,0,0,4],[19,1,23,4],[2,6,16,6]]}
["Format algemene meerkosten"]
[null,"Stap 1.\nKies Domein","Stap 2.\nOmschrijving meerkosten","Stap 3.\nGemaakte meerkosten","Stap 4.\nBijbehorend document(en)"]
["Voorbeeld:","Jeugd","Voorbeeld: Persoonlijke beschermingsmiddelen (mondkapjes + afscheidingsmogelijkheden) zie handleiding",875,"Mail wisseling met RDS incl. toestemming en Factuur nummers 3, 4 en 5 toegevoegd in mail",null,"Onder meerkosten vallen:\nBeschermingsmiddelen \nArbokosten \nHuur locaties \nPersonele kosten \nExtra inzet eigen personeel \nQuarantaineopvang \nAlternatieve zorgverlening \nExtra vervoerskosten \nOverige meerkosten \n",null,null,"Jeugd"]
[null,null,null,0,null,null,null,null,null,"Wmo"]
[null,null,null,0,null,null,null,null,null,"Algemeen"]
[null,null,null,0]
[null,null,null,0]
[null,null,null,0]
[null,null,null,0]
[null,null,null,0]
[null,null,null,0]
[null,null,null,0]
[null,null,null,0]
[null,null,null,0]
[null,null,null,0]
[null,null,null,0]
[null,null,null,0]
[null,"Totaal algemene meerkosten",null,{"$f":"SUM(D4:D17)","v":0}]
[]
[null,"*Toelichting: De algemene meerkosten die worden opgevoerd worden  naar rato verrekend onder de gemeenten waar de aanbieder in 2019 productie heeft geleverd"]

{"sheet":"Declaratiekalender Jeugd & Wmo","index":2,"n_rows":21,"n_cols":4,"rows_kept":21,"cut":false,"hidden":true,"merged":[]}
[null,"Betreft de declaratie van alle geleverde zorg in de periode:","Uiterlijke indiendatum","Uiterlijke indiendatum + 30 dagen gemeente"]
["Jeugd","periode 3-2020 (1-3-2020 t/m 31-3-2020)","2020-05-31",{"$f":"C2+30","v":"2020-06-30"}]
["Jeugd","periode 4-2020 (1-4-2020 t/m 30-4-2020)","2020-06-30",{"$f":"C3+30","v":"2020-07-30"}]
["Jeugd","periode 5-2020 (1-5-2020 t/m 31-5-2020)","2020-07-31","2020-08-30"]
["Jeugd","periode 6-2020 (1-6-2020 t/m 30-6-2020)","2020-08-31","2020-09-30"]
["Jeugd","periode 7-2020 (1-7-2020 t/m 31-7-2020)","2020-09-30","2020-10-30"]
["Jeugd","periode 8-2020 (1-8-2020 t/m 31-8-2020)","2020-10-31","2020-11-30"]
["Jeugd","periode 9-2020 (1-9-2020 t/m 30-9-2020)","2020-11-30","2020-12-30"]
["Jeugd","periode 10-2020 (1-10-2020 t/m 31-10-2020)","2020-12-31","2021-01-30"]
["Jeugd","periode 11-2020 (1-11-2020 t/m 30-11-2020)","2021-01-31","2021-03-02"]
["Jeugd","periode 12-2020 (1-12-2020 t/m 31-12-2020)","2021-02-28","2021-03-30"]
["Wmo","periode 3-2020 (24-02-2020 t/m 22-03-2020)","2020-06-05","2020-07-05"]
["Wmo","periode 4-2020 (23-03-2020 t/m 19-04-2020)","2020-07-03","2020-08-02"]
["Wmo","periode 5-2020 (20-04-2020 t/m 17-05-2020)","2020-07-31","2020-08-30"]
["Wmo","periode 6-2020 (18-05-2020 t/m 14-06-2020)","2020-08-28","2020-09-27"]
["Wmo","periode 7-2020 (15-06-2020 t/m 12-07-2020)","2020-09-25","2020-10-25"]
["Wmo","periode 8-2020 (13-07-2020 t/m 09-08-2020)","2020-10-23","2020-11-22"]
["Wmo","periode 9-2020 (10-08-2020 t/m 06-09-2020)","2020-11-20","2020-12-20"]
["Wmo","periode 10-2020 (07-09-2020 t/m 04-10-2020)","2020-12-18","2021-01-17"]
["Wmo","periode 11-2020 (05-10-2020 t/m 01-11-2020)","2021-01-15","2021-02-14"]
["Wmo","periode 12-2020 (02-11-2020 t/m 29-11-2020)","2021-02-18","2021-03-20"]